fUSD/lending_fUSD_20240429
["ID","MTS","AMOUNT","RATE_DAILY","PERIOD"]
[324910431,1714410958479,427.4264081,0.00010299,2]
[324910432,1714410958948,204.0929013,0.00010299,2]
[324910433,1714410960280,155.0,0.00010299,2]
[324910434,1714410961957,2181.02038559,0.00010299,2]
[324910435,1714410963836,155.0,0.00010299,2]
[324910436,1714410969081,787.64873451,0.00010299,2]
[324910437,1714410969696,3167.81195985,0.00010299,2]
[324910438,1714410970337,161.61771698,0.00010299,2]
[324910439,1714410972599,208.00772945,0.00010299,2]
[324910440,1714410974560,320.3706901,0.00010299,2]
[324910441,1714410979850,155.0,0.00010299,2]
[324910442,1714410982165,255.58586281,0.00010299,2]
[324910443,1714410982515,3082.64415002,0.00010299,2]
[324910444,1714410982858,1609.40657091,0.00010299,2]
[324910445,1714410986551,155.0,0.00010299,2]
[324910446,1714410986584,155.0,0.00010299,2]
[324910447,1714410987094,155.0,0.00010299,2]
[324910448,1714410993711,155.0,0.00010299,2]
[324910449,1714410994596,258.01221681,0.00010299,2]
[324910450,1714410994790,155.0,0.00010299,2]
[324910451,1714410998423,174.62040498,0.00010299,2]
[324910452,1714411000144,192.87039582,0.00010299,2]
[324910453,1714411000374,343.5613337,0.00010299,2]
[324910454,1714411000655,2323.11452786,0.00010299,2]
[324910455,1714411001126,1777.66560076,0.00010299,2]
[324910456,1714411003657,7345.78094969,0.00010299,2]
[324910457,1714411012304,4586.16381281,0.00010299,2]
[324910458,1714411018052,5549.67368343,0.00010299,2]
[324910459,1714411033323,187.75,8.285e-05,2]
[324910461,1714411073874,3415.39363625,0.00010299,2]
[324910462,1714411079120,200.42749069,0.00010299,2]
[324910463,1714411125344,203.26,0.00010236,2]
[324910465,1714411162332,301.51932461,0.00010185,2]
[324910467,1714411172591,529.96,0.00010218,2]
[324910468,1714411291709,220.11,8.219e-05,2]
[324910469,1714411361177,469146.96884736,8.219e-05,2]
[324910470,1714411365995,1979.0,0.00010102,2]
[324910472,1714411532993,3861.11,0.00010128,2]
[324910473,1714411549290,2323.11452786,0.00010299,2]
[324910474,1714411554386,320.3706901,0.00010299,2]
[324910476,1714411653502,158.29,0.00010073,2]
[324910501,1714411832562,-155.72851281,0.00010339,2]
[324910503,1714411832572,-1323.69721779,0.0001034,2]
[324910505,1714411832583,-389.84087267,0.0001034,2]
[324910507,1714411832595,-503.32827474,0.0001034,2]
[324910509,1714411832604,-200.42749069,0.0001034,2]
[324910511,1714411832614,-150.0,0.0001034,2]
[324910513,1714411832623,-2367.94808989,0.00010344,2]
[324910515,1714411832635,-3391.0572534,0.00010344,2]
[324910518,1714411832647,-5760.8551,0.00010344,2]
[324910520,1714411832661,-364.57213902,0.00010344,2]
[324910522,1714411832670,-289.12,0.00010439,2]
[324910524,1714411832679,-289.12,0.00010467,2]
[324910526,1714411832688,-220.11,0.00010481,2]
[324910528,1714411832699,-289.12,0.00010496,2]
[324910530,1714411832709,-499.99,0.00010516,2]
[324910532,1714411832718,-47.96786098,0.00010516,2]
[324910534,1714411832730,-103.02213902,0.00010516,2]
[324910536,1714411832739,-150.99,0.00010516,2]
[324910538,1714411832748,-887.95,0.00010524,2]
[324910540,1714411832757,-289.12,0.00010524,2]
[324910542,1714411832766,-289.12,0.00010553,2]
[324910543,1714411832775,-150.99,0.00010573,2]
[324910546,1714411832785,-289.12,0.00010582,2]
[324910547,1714411832794,-150.99,0.00010602,2]
[324910548,1714411832804,-7205.7,0.00010602,2]
[324910549,1714411832813,-289.12,0.0001061,2]
[324910550,1714411832822,-289.12,0.00010639,2]
[324910551,1714411832832,-289.12,0.00010668,2]
[324910552,1714411832841,-289.12,0.00010696,2]
[324910553,1714411832850,-289.12,0.00010725,2]
[324910554,1714411832859,-289.12,0.00010754,2]
[324910555,1714411832869,-289.12,0.00010782,2]
[324910556,1714411832878,-289.12,0.00010811,2]
[324910557,1714411832887,-289.12,0.00010839,2]
[324910558,1714411832896,-289.12,0.00010868,2]
[324910559,1714411832905,-289.12,0.00010897,2]
[324910560,1714411832916,-289.12,0.00010925,2]
[324910561,1714411832925,-289.12,0.00010954,2]
[324910562,1714411832934,-1162.07,0.00010959,2]
[324910563,1714411832943,-1068.07,0.00010959,2]
[324910564,1714411832952,-150.0,0.00010959,2]
[324910565,1714411832961,-2000.0,0.00010959,3]
[324910566,1714411832971,-150.0,0.00010959,2]
[324910567,1714411832979,-893.19,0.00010959,2]
[324910568,1714411832988,-5388.41,0.00010959,2]
[324910569,1714411832997,-905.83,0.00010975,2]
[324910570,1714411833007,-905.83,0.00010978,2]
[324910571,1714411833016,-905.83,0.00010981,2]
[324910572,1714411833025,-289.12,0.00010983,2]
[324910573,1714411833034,-84553.03936157,0.00010983,2]
[324910574,1714411833043,-905.83,0.00010984,2]
[324910575,1714411833051,-905.83,0.00010987,2]
[324910576,1714411833060,-905.83,0.0001099,2]
[324910577,1714411833069,-905.83,0.00010993,2]
[324910578,1714411833078,-905.83,0.00010996,2]
[324910579,1714411833087,-905.83,0.00010998,2]
[324910580,1714411833096,-2450.0,0.00011,3]
[324910581,1714411833105,-905.83,0.00011001,2]
[324910582,1714411833114,-905.83,0.00011004,2]
[324910583,1714411833124,-905.83,0.00011007,2]
[324910584,1714411833133,-905.83,0.0001101,2]
[324910585,1714411833142,-905.83,0.00011013,2]
[324910586,1714411833151,-905.83,0.00011016,2]
[324910587,1714411833163,-905.83,0.00011019,2]
[324910588,1714411833171,-905.83,0.00011021,2]
[324910589,1714411833180,-905.83,0.00011024,2]
[324910590,1714411833189,-905.83,0.00011027,2]
[324910591,1714411833198,-905.83,0.0001103,2]
[324910592,1714411833207,-610.98228989,0.00011322,2]
[324910593,1714411833216,-260.96563303,0.00011322,2]
[324910594,1714411833225,-158.29,0.00011332,2]
[324910595,1714411833234,-210.0,0.00011374,2]
[324910596,1714411833244,-529.96,0.00011495,2]
[324910597,1714411833253,-203.26,0.00011515,2]
[324910598,1714411833262,-1918.65596284,0.00011596,2]
[324910599,1714411833272,-414.11,0.00011816,2]
[324910600,1714411833281,-414.11,0.00011816,2]
[324910601,1714411833291,-413.93,0.00011816,2]
[324910602,1714411833300,-911.1,0.00011831,2]
[324910603,1714411833309,-911.1,0.00011831,2]
[324910604,1714411833318,-911.1,0.00011831,2]
[324910605,1714411833328,-911.1,0.00011831,2]
[324910606,1714411833337,-911.1,0.00011831,2]
[324910607,1714411833347,-911.1,0.00011831,2]
[324910608,1714411833356,-911.1,0.00011831,2]
[324910609,1714411833365,-1500.0,0.000119,4]
[324910610,1714411833374,-253.13001085,0.00011951,2]
[324910611,1714411833383,-693.81036074,0.00011951,2]
[324910612,1714411833393,-1000.0,0.00012008,2]
[324910613,1714411833403,-17893.95547462,0.00012035,2]
[324910614,1714411833413,-1846.6909689,0.00012036,2]
[324910615,1714411833422,-19490.2739,0.00012108,2]
[324910616,1714411833432,-461.08251501,0.00012108,2]
[324910617,1714411833441,-580.17990607,0.00012195,2]
[324910618,1714411833451,-581.19542968,0.000122,2]
[324910619,1714411833460,-500.0,0.00012203,2]
[324910620,1714411833469,-500.0,0.00012203,2]
[324910621,1714411833478,-500.0,0.00012204,2]
[324910622,1714411833488,-2018.85,0.00012204,2]
[324910623,1714411833499,-1628.74,0.00012204,2]
[324910624,1714411833509,-613.42,0.00012204,2]
[324910625,1714411833518,-2264.35,0.00012204,2]
[324910626,1714411833527,-706.1,0.00012204,2]
[324910627,1714411833539,-1326.5,0.00012204,2]
[324910628,1714411833747,-2963.62,0.00012204,2]
[324910629,1714411833757,-4724.87,0.00012204,2]
[324910630,1714411833767,-613.42,0.00012204,2]
[324910631,1714411833775,-958.83,0.00012204,2]
[324910632,1714411833785,-563.09,0.00012204,2]
[324910633,1714411833794,-4443.39,0.00012204,2]
[324910634,1714411833803,-650.49,0.00012204,2]
[324910635,1714411833813,-3397.02,0.00012204,2]
[324910636,1714411833822,-686.01,0.00012204,2]
[324910637,1714411833831,-1067.17,0.00012204,2]
[324910638,1714411833840,-500.0,0.00012204,2]
[324910639,1714411833849,-661.97,0.00012204,2]
[324910640,1714411833858,-3909.7,0.00012204,2]
[324910641,1714411833867,-2523.84,0.00012204,2]
[324910642,1714411833876,-778.72,0.00012204,2]
[324910643,1714411833885,-500.0,0.00012204,2]
[324910644,1714411833894,-309.67404884,0.00012204,2]
[324910645,1714411833903,-500.0,0.00012204,2]
[324910646,1714411833914,-2585.89,0.00012204,2]
[324910647,1714411833923,-364.84491836,0.00012205,2]
[324910648,1714411833932,-500.0,0.00012205,2]
[324910649,1714411833941,-6525.46,0.00012205,2]
[324910650,1714411833950,-822.85,0.00012205,2]
[324910651,1714411833959,-805.59,0.00012205,2]
[324910652,1714411833969,-847.04,0.00012205,2]
[324910653,1714411833978,-1957.33,0.00012205,2]
[324910654,1714411833987,-3425.1,0.00012205,2]
[324910655,1714411833997,-551.76,0.00012205,2]
[324910656,1714411834006,-1597.96,0.00012205,2]
[324910657,1714411834015,-500.0,0.00012205,2]
[324910658,1714411834025,-1973.15,0.00012205,2]
[324910659,1714411834034,-500.0,0.00012205,2]
[324910660,1714411834043,-1595.05,0.00012205,2]
[324910661,1714411834052,-500.0,0.00012205,2]
[324910662,1714411834062,-2452.06,0.00012205,2]
[324910663,1714411834071,-678.41,0.00012205,2]
[324910664,1714411834080,-3158.66,0.00012205,2]
[324910665,1714411834090,-1988.92,0.00012205,2]
[324910666,1714411834100,-427.03,0.00012205,2]
[324910667,1714411834109,-500.0,0.00012205,2]
[324910668,1714411834118,-500.0,0.00012205,2]
[324910669,1714411834127,-3317.99,0.00012205,2]
[324910670,1714411834136,-776.94,0.00012205,2]
[324910671,1714411834146,-618.62,0.00012205,2]
[324910672,1714411834156,-665.48,0.00012205,2]
[324910673,1714411834168,-500.0,0.00012205,2]
[324910674,1714411834177,-3642.07,0.00012205,2]
[324910675,1714411834186,-500.0,0.00012205,2]
[324910676,1714411834195,-738.75,0.00012205,2]
[324910677,1714411834204,-619.51,0.00012205,2]
[324910678,1714411834213,-1888.25,0.00012205,2]
[324910679,1714411834223,-249.73515181,0.00012206,2]
[324910680,1714411834234,-641.63389622,0.00012206,2]
[324910681,1714411834244,-155.0,0.00012206,2]
[324910682,1714411834253,-246.6472366,0.00012206,2]
[324910683,1714411834263,-215.71570748,0.00012206,2]
[324910684,1714411834272,-239.37624355,0.00012206,2]
[324910685,1714411834282,-320.01047972,0.00012206,2]
[324910686,1714411834292,-162.07402568,0.00012206,2]
[324910687,1714411834302,-155.0,0.00012206,2]
[324910688,1714411834312,-1675.06807267,0.00012206,2]
[324910689,1714411834321,-203.43366109,0.00012206,2]
[324910690,1714411834331,-277.42267596,0.00012206,2]
[324910691,1714411834340,-191.1509856,0.00012206,2]
[324910692,1714411834352,-787.33313377,0.00012206,2]
[324910693,1714411834361,-160.88341354,0.00012206,2]
[324910694,1714411834371,-155.42199688,0.00012206,2]
[324910695,1714411834380,-401.52023369,0.00012206,2]
[324910696,1714411834390,-1082.04199596,0.00012206,2]
[324910697,1714411834399,-1392.74465137,0.00012206,2]
[324910698,1714411834408,-207.88378701,0.00012206,2]
[324910699,1714411834419,-309.59058991,0.00012206,2]
[324910700,1714411834429,-155.93762568,0.00012206,2]
[324910701,1714411834438,-275.56606053,0.00012206,2]
[324910702,1714411834447,-197.52459193,0.00012206,2]
[324910703,1714411834456,-259.35041271,0.00012206,2]
[324910704,1714411834466,-385.91474857,0.00012206,2]
[324910705,1714411834476,-195.67959256,0.00012206,2]
[324910706,1714411834486,-176.0636482,0.00012206,2]
[324910707,1714411834498,-5096.98897475,0.00012206,2]
[324910708,1714411834508,-340.13543524,0.00012206,2]
[324910709,1714411834517,-827.45071523,0.00012206,2]
[324910710,1714411834527,-215.98192042,0.00012206,2]
[324910711,1714411834537,-338.92597898,0.00012206,2]
[324910712,1714411834547,-2118.55830212,0.00012206,2]
[324910713,1714411834557,-169.7808199,0.00012206,2]
[324910714,1714411834567,-500.0,0.00012206,2]
[324910715,1714411834578,-500.0,0.00012206,2]
[324910716,1714411834588,-645.59,0.00012206,2]
[324910717,1714411834597,-500.0,0.00012206,2]
[324910718,1714411834606,-529.8,0.00012206,2]
[324910719,1714411834616,-500.0,0.00012206,2]
[324910720,1714411834625,-500.0,0.00012206,2]
[324910721,1714411834634,-500.0,0.00012206,2]
[324910722,1714411834644,-500.0,0.00012206,2]
[324910723,1714411834653,-500.0,0.00012206,2]
[324910724,1714411834663,-500.0,0.00012206,2]
[324910725,1714411834672,-500.0,0.00012206,2]
[324910726,1714411834681,-500.0,0.00012206,2]
[324910727,1714411834690,-500.0,0.00012206,2]
[324910728,1714411834700,-814.6,0.00012206,2]
[324910729,1714411834710,-500.0,0.00012206,2]
[324910730,1714411834719,-1454.31,0.00012206,2]
[324910731,1714411834728,-728.61,0.00012206,2]
[324910732,1714411834738,-500.0,0.00012206,2]
[324910733,1714411834747,-500.0,0.00012206,2]
[324910734,1714411834757,-216.32,0.00012206,2]
[324910735,1714411834766,-500.0,0.00012206,2]
[324910736,1714411834775,-500.0,0.00012206,2]
[324910737,1714411834784,-500.0,0.00012206,2]
[324910738,1714411834794,-2586.5,0.00012206,2]
[324910739,1714411834803,-500.0,0.00012206,2]
[324910740,1714411834813,-500.0,0.00012206,2]
[324910741,1714411834823,-500.0,0.00012206,2]
[324910742,1714411834831,-500.0,0.00012206,2]
[324910743,1714411834841,-500.0,0.00012206,2]
[324910744,1714411834850,-500.0,0.00012206,2]
[324910745,1714411834859,-1972.8,0.00012206,2]
[324910746,1714411834869,-719.23,0.00012206,2]
[324910747,1714411834879,-766.36,0.00012206,2]
[324910748,1714411834888,-500.0,0.00012206,2]
[324910749,1714411834897,-716.81,0.00012206,2]
[324910750,1714411834907,-500.0,0.00012206,2]
[324910751,1714411834918,-500.0,0.00012206,2]
[324910752,1714411834928,-500.0,0.00012206,2]
[324910753,1714411834937,-500.0,0.00012206,2]
[324910754,1714411834946,-500.0,0.00012206,2]
[324910755,1714411834955,-500.0,0.00012206,2]
[324910756,1714411834965,-735.01,0.00012206,2]
[324910757,1714411834974,-500.0,0.00012206,2]
[324910758,1714411834983,-880.52,0.00012206,2]
[324910759,1714411834993,-643.51,0.00012206,2]
[324910760,1714411835002,-500.0,0.00012206,2]
[324910761,1714411835011,-500.0,0.00012206,2]
[324910762,1714411835021,-3591.29,0.00012206,2]
[324910763,1714411835030,-975.05,0.00012206,2]
[324910764,1714411835039,-500.0,0.00012206,2]
[324910765,1714411835049,-863.46,0.00012206,2]
[324910766,1714411835058,-500.0,0.00012206,2]
[324910767,1714411835067,-1597.39,0.00012206,2]
[324910768,1714411835077,-500.0,0.00012206,2]
[324910769,1714411835086,-500.0,0.00012206,2]
[324910770,1714411835095,-9427.87,0.00012206,2]
[324910771,1714411835104,-617.93,0.00012206,2]
[324910772,1714411835114,-4252.16,0.00012206,2]
[324910773,1714411835123,-792.08,0.00012206,2]
[324910774,1714411835132,-500.0,0.00012206,2]
[324910775,1714411835141,-500.0,0.00012206,2]
[324910776,1714411835150,-2010.26,0.00012206,2]
[324910777,1714411835159,-500.0,0.00012206,2]
[324910778,1714411835170,-500.0,0.00012206,2]
[324910779,1714411835180,-571.42,0.00012206,2]
[324910780,1714411835190,-1955.62,0.00012206,2]
[324910781,1714411835199,-500.0,0.00012206,2]
[324910782,1714411835209,-199.19645037,0.00012206,2]
[324910783,1714411835218,-500.0,0.00012206,2]
[324910784,1714411835227,-500.0,0.00012206,2]
[324910785,1714411835237,-500.0,0.00012206,2]
[324910786,1714411835246,-2692.17,0.00012206,2]
[324910787,1714411835256,-500.0,0.00012206,2]
[324910788,1714411835265,-1766.74,0.00012206,2]
[324910789,1714411835275,-608.84,0.00012206,2]
[324910790,1714411835284,-2208.06,0.00012206,2]
[324910791,1714411835293,-500.0,0.00012206,2]
[324910792,1714411835302,-3653.32,0.00012206,2]
[324910793,1714411835312,-2068.67,0.00012206,2]
[324910794,1714411835324,-500.0,0.00012206,2]
[324910795,1714411835334,-4970.16,0.00012206,2]
[324910796,1714411835343,-500.0,0.00012206,2]
[324910797,1714411835352,-500.0,0.00012206,2]
[324910798,1714411835361,-1867.78,0.00012206,2]
[324910799,1714411835370,-500.0,0.00012206,2]
[324910800,1714411835380,-847.36,0.00012206,2]
[324910801,1714411835389,-610.18,0.00012206,2]
[324910802,1714411835399,-221.14263151,0.00012207,2]
[324910803,1714411835409,-500.0,0.00012207,2]
[324910804,1714411835421,-512.68814636,0.00012207,2]
[324910805,1714411835430,-500.0,0.00012207,2]
[324910806,1714411835440,-500.0,0.00012207,2]
[324910807,1714411835450,-500.0,0.00012207,2]
[324910808,1714411835459,-500.0,0.00012207,2]
[324910809,1714411835469,-500.0,0.00012207,2]
[324910810,1714411835479,-500.0,0.00012207,2]
[324910811,1714411835489,-500.0,0.00012207,2]
[324910812,1714411835503,-500.0,0.00012207,2]
[324910813,1714411835513,-500.0,0.00012207,2]
[324910814,1714411835522,-500.0,0.00012207,2]
[324910815,1714411835531,-500.0,0.00012207,2]
[324910816,1714411835542,-500.0,0.00012207,2]
[324910817,1714411835551,-1034.64124282,0.00012207,3]
[324910818,1714411835560,-500.0,0.00012207,2]
[324910819,1714411835570,-500.0,0.00012207,2]
[324910820,1714411835580,-500.0,0.00012207,2]
[324910821,1714411835589,-500.0,0.00012207,2]
[324910822,1714411835599,-194.21,0.00012207,2]
[324910823,1714411835607,-500.0,0.00012207,2]
[324910824,1714411835617,-500.0,0.00012207,2]
[324910825,1714411835627,-500.0,0.00012207,2]
[324910826,1714411835636,-500.0,0.00012207,2]
[324910827,1714411835646,-500.0,0.00012207,2]
[324910828,1714411835656,-500.0,0.00012207,2]
[324910829,1714411835667,-500.0,0.00012207,2]
[324910830,1714411835676,-635.96601563,0.00012207,2]
[324910831,1714411835686,-500.0,0.00012207,2]
[324910832,1714411835695,-1050.41,0.00012207,2]
[324910833,1714411835705,-500.0,0.00012207,2]
[324910834,1714411835714,-678.22,0.00012207,2]
[324910835,1714411835724,-500.0,0.00012207,2]
[324910836,1714411835733,-499.0,0.00012207,2]
[324910837,1714411835743,-1927.48,0.00012207,2]
[324910838,1714411835752,-500.0,0.00012207,2]
[324910839,1714411835761,-2270.35,0.00012207,2]
[324910840,1714411835771,-1194.87,0.00012207,2]
[324910841,1714411835780,-500.0,0.00012207,2]
[324910842,1714411835790,-1195.79,0.00012207,2]
[324910843,1714411835799,-500.0,0.00012207,2]
[324910844,1714411835808,-3487.41,0.00012207,2]
[324910845,1714411835818,-4413.68,0.00012207,2]
[324910846,1714411835828,-1695.47,0.00012207,2]
[324910847,1714411835837,-1952.91,0.00012207,2]
[324910848,1714411835846,-2280.96,0.00012207,2]
[324910849,1714411835856,-2607.45,0.00012207,2]
[324910850,1714411835865,-631.26232689,0.00012207,2]
[324910851,1714411835874,-1661.94,0.00012207,2]
[324910852,1714411835883,-785.28,0.00012207,2]
[324910853,1714411835892,-1120.73,0.00012207,2]
[324910854,1714411835902,-843.95,0.00012207,2]
[324910855,1714411835911,-2312.76,0.00012207,2]
[324910856,1714411835921,-5986.43,0.00012207,2]
[324910857,1714411835930,-505.3,0.00012207,2]
[324910858,1714411835940,-500.0,0.00012207,2]
[324910859,1714411835950,-3202.27,0.00012207,2]
[324910860,1714411835959,-822.31,0.00012207,2]
[324910861,1714411835969,-500.0,0.00012207,2]
[324910862,1714411835978,-500.0,0.00012207,2]
[324910863,1714411835987,-500.0,0.00012207,2]
[324910864,1714411835997,-2175.44,0.00012207,2]
[324910865,1714411836006,-1328.19,0.00012207,2]
[324910866,1714411836015,-225.07080002,0.00012207,2]
[324910867,1714411836024,-588.37,0.00012207,2]
[324910868,1714411836033,-942.64,0.00012207,2]
[324910869,1714411836043,-710.39,0.00012207,2]
[324910870,1714411836052,-1047.69,0.00012207,2]
[324910871,1714411836062,-500.0,0.00012207,2]
[324910872,1714411836071,-500.0,0.00012207,2]
[324910873,1714411836080,-500.0,0.00012207,2]
[324910874,1714411836089,-3605.64,0.00012207,2]
[324910875,1714411836098,-500.0,0.00012207,2]
[324910876,1714411836107,-656.05,0.00012207,2]
[324910877,1714411836116,-500.0,0.00012207,2]
[324910878,1714411836126,-674.82,0.00012207,2]
[324910879,1714411836135,-4075.9319,0.00012208,2]
[324910880,1714411836144,-2096.1915,0.00012208,2]
[324910881,1714411836153,-83294.7404,0.00012208,2]
[324910882,1714411836163,-116224.9925,0.00012208,2]
[324910883,1714411836172,-4715.3147,0.00012208,2]
[324910884,1714411836182,-500.0,0.00012208,2]
[324910885,1714411836191,-1000.0,0.00012208,2]
[324910886,1714411836201,-34060.1076,0.00012208,2]
[324910887,1714411836210,-267.55488526,0.00012297,2]
[324910888,1714411836219,-3000.0,0.000123,4]
[324910889,1714411836228,-461.08251497,0.00012306,2]
[324910890,1714411836238,-500.0,0.00012307,2]
[324910891,1714411836247,-500.0,0.00012307,2]
[324910892,1714411836256,-500.0,0.00012307,2]
[324910893,1714411836265,-600.49,0.00012307,2]
[324910894,1714411836275,-500.0,0.00012307,2]
[324910895,1714411836284,-509.8999111,0.00012307,2]
[324910896,1714411836293,-500.0,0.00012307,2]
[324910897,1714411836302,-500.0,0.00012307,2]
[324910898,1714411836311,-500.0,0.00012307,2]
[324910899,1714411836320,-1570.25,0.00012307,2]
[324910900,1714411836329,-500.0,0.00012307,2]
[324910901,1714411836339,-500.0,0.00012307,2]
[324910902,1714411836348,-720.31,0.00012307,2]
[324910903,1714411836357,-500.0,0.00012307,2]
[324910904,1714411836366,-500.0,0.00012307,2]
[324910905,1714411836376,-500.0,0.00012307,2]
[324910906,1714411836385,-500.0,0.00012307,2]
[324910907,1714411836394,-500.0,0.00012307,2]
[324910908,1714411836404,-1507.7,0.00012307,2]
[324910909,1714411836414,-500.0,0.00012307,2]
[324910910,1714411836423,-500.0,0.00012307,2]
[324910911,1714411836434,-657.25,0.00012307,2]
[324910912,1714411836443,-648.67,0.00012307,2]
[324910913,1714411836452,-500.0,0.00012307,2]
[324910914,1714411836461,-500.0,0.00012307,2]
[324910915,1714411836471,-500.0,0.00012307,2]
[324910916,1714411836480,-500.0,0.00012307,2]
[324910917,1714411836490,-500.0,0.00012307,2]
[324910918,1714411836501,-686.41,0.00012307,2]
[324910919,1714411836511,-163.42,0.00012307,2]
[324910920,1714411836520,-500.0,0.00012307,2]
[324910921,1714411836529,-549.01,0.00012307,2]
[324910922,1714411836539,-500.0,0.00012307,2]
[324910923,1714411836548,-500.0,0.00012307,2]
[324910924,1714411836557,-500.0,0.00012307,2]
[324910925,1714411836566,-500.0,0.00012307,2]
[324910926,1714411836576,-500.0,0.00012307,2]
[324910927,1714411836586,-500.0,0.00012307,2]
[324910928,1714411836596,-653.14,0.00012307,2]
[324910929,1714411836605,-500.0,0.00012307,2]
[324910930,1714411836615,-500.0,0.00012307,2]
[324910931,1714411836624,-500.0,0.00012307,2]
[324910932,1714411836633,-500.0,0.00012307,2]
[324910933,1714411836643,-251.76,0.00012307,2]
[324910934,1714411836652,-691.21,0.00012307,2]
[324910935,1714411836662,-513.13,0.00012307,2]
[324910936,1714411836672,-500.0,0.00012307,2]
[324910937,1714411836681,-500.0,0.00012307,2]
[324910938,1714411836690,-500.0,0.00012307,2]
[324910939,1714411836700,-500.0,0.00012307,2]
[324910940,1714411836709,-500.0,0.00012307,2]
[324910941,1714411836719,-599.98,0.00012307,2]
[324910942,1714411836728,-500.0,0.00012307,2]
[324910943,1714411836738,-500.0,0.00012307,2]
[324910944,1714411836747,-530.68,0.00012307,2]
[324910945,1714411836757,-500.0,0.00012307,2]
[324910946,1714411836767,-500.0,0.00012307,2]
[324910947,1714411836776,-500.0,0.00012307,2]
[324910948,1714411836786,-581.96,0.00012307,2]
[324910949,1714411836795,-646.32,0.00012307,2]
[324910950,1714411836805,-662.65,0.00012307,2]
[324910951,1714411836825,-500.0,0.00012307,2]
[324910952,1714411836836,-671.89,0.00012307,2]
[324910953,1714411836846,-500.0,0.00012307,2]
[324910954,1714411836856,-580.68,0.00012307,2]
[324910955,1714411836866,-476.04093415,0.00012308,2]
[324910956,1714411836876,-500.0,0.00012308,2]
[324910957,1714411836886,-500.0,0.00012308,2]
[324910958,1714411836896,-500.0,0.00012308,2]
[324910959,1714411836906,-500.0,0.00012308,2]
[324910960,1714411836919,-500.0,0.00012308,2]
[324910961,1714411836929,-165.47,0.00012308,2]
[324910962,1714411836938,-475.04,0.00012308,2]
[324910963,1714411836948,-500.0,0.00012308,2]
[324910964,1714411836957,-500.0,0.00012308,2]
[324910965,1714411836966,-224.04,0.00012308,2]
[324910966,1714411836976,-289.17,0.00012308,2]
[324910967,1714411836986,-500.0,0.00012308,2]
[324910968,1714411836996,-500.0,0.00012308,2]
[324910969,1714411837006,-500.0,0.00012308,2]
[324910970,1714411837016,-601.3207193,0.00012308,2]
[324910971,1714411837026,-500.0,0.00012308,2]
[324910972,1714411837035,-500.0,0.00012308,2]
[324910973,1714411837045,-500.0,0.00012308,2]
[324910974,1714411837055,-598.91,0.00012308,2]
[324910975,1714411837064,-500.0,0.00012308,2]
[324910976,1714411837074,-536.67457,0.0001237,2]
[324910977,1714411837084,-188.75867201,0.000124,2]
[324910978,1714411837093,-167.84294178,0.000124,2]
[324910979,1714411837103,-4500.0,0.000124,4]
[324910980,1714411837112,-225.0708,0.00012404,2]
[324910981,1714411837122,-500.0,0.00012477,2]
[324910982,1714411837132,-500.0,0.00012477,2]